fUSD/lending_fUSD_20240412
["ID","MTS","AMOUNT","RATE_DAILY","PERIOD"]
[322342783,1712956615211,337.41,0.00049041,31]
[322342784,1712956615265,1160.47,0.00048767,31]
[322342785,1712956615300,500.0,0.00047123,31]
[322342786,1712956615347,1160.47,0.00049041,31]
[322342787,1712956615381,500.0,0.00047397,31]
[322342788,1712956615419,157.041306,0.00044448,54]
[322342789,1712956615465,500.0,0.00047671,31]
[322342790,1712956615516,1160.47,0.00049315,120]
[322342791,1712956615548,500.0,0.00047945,31]
[322342792,1712956615736,500.0,0.00048219,31]
[322342793,1712956615833,223.88,0.00048493,31]
[322342794,1712956615878,500.0,0.00046575,31]
[322342795,1712956615929,500.0,0.00046575,31]
[322342796,1712956615964,500.0,0.00046575,31]
[322342797,1712956615996,500.0,0.00046849,31]
[322342798,1712956616041,500.0,0.00046849,31]
[322342799,1712956616076,500.0,0.00046849,31]
[322342800,1712956616113,500.0,0.00047123,31]
[322342801,1712956616158,666.37,0.00046575,31]
[322342802,1712956616192,500.0,0.00047123,31]
[322342803,1712956616225,500.0,0.00047123,31]
[322342804,1712956616257,500.0,0.00047397,31]
[322342805,1712956616343,666.37,0.00046849,31]
[322342806,1712956616375,500.0,0.00047397,31]
[322342807,1712956616406,500.0,0.00047397,31]
[322342808,1712956616446,500.0,0.00047671,31]
[322342809,1712956616534,500.0,0.00047671,31]
[322342810,1712956616567,500.0,0.00047671,31]
[322342811,1712956616599,666.37,0.00047123,31]
[322342812,1712956616642,579.98,0.00046575,31]
[322342813,1712956616679,500.0,0.00046575,31]
[322342814,1712956616711,500.0,0.00047945,31]
[322342815,1712956616743,500.0,0.00046575,31]
[322342816,1712956616774,666.37,0.00047397,31]
[322342817,1712956616815,500.0,0.00047945,31]
[322342818,1712956616859,500.0,0.00048219,31]
[322342819,1712956616892,500.0,0.00046575,31]
[322342820,1712956616926,459.96841115,0.00046849,31]
[322342821,1712956616961,666.37,0.00047671,31]
[322342822,1712956616997,500.0,0.00046575,31]
[322342823,1712956617030,500.0,0.00047945,31]
[322342824,1712956617073,500.0,0.00048493,31]
[322342825,1712956617107,500.0,0.00046849,31]
[322342826,1712956617141,666.37,0.00047945,31]
[322342827,1712956617176,500.0,0.00046849,31]
[322342828,1712956617215,500.0,0.00048219,31]
[322342829,1712956617248,500.0,0.00048219,31]
[322342830,1712956617283,500.0,0.00048767,31]
[322342831,1712956617315,447.23538986,0.00047123,31]
[322342832,1712956617353,500.0,0.00047123,31]
[322342833,1712956617385,666.37,0.00048219,31]
[322342834,1712956617417,500.0,0.00046575,31]
[322342835,1712956617451,500.0,0.00048493,31]
[322342836,1712956617491,203.06845907,0.00046575,31]
[322342837,1712956617531,500.0,0.00048493,31]
[322342838,1712956617569,500.0,0.00049041,31]
[322342839,1712956617610,500.0,0.00047397,31]
[322342840,1712956617645,666.37,0.00048493,31]
[322342841,1712956617680,500.0,0.00048767,31]
[322342842,1712956617715,590.05234483,0.00046575,31]
[322342843,1712956617752,500.0,0.00049315,120]
[322342844,1712956617787,500.0,0.00047671,31]
[322342845,1712956617833,666.37,0.00048767,31]
[322342846,1712956617870,500.0,0.00049041,31]
[322342847,1712956617914,500.0,0.00047945,31]
[322342848,1712956617960,666.37,0.00049041,31]
[322342849,1712956617995,500.0,0.00048767,31]
[322342850,1712956618029,500.0,0.00049315,120]
[322342851,1712956618065,500.0,0.00046575,31]
[322342852,1712956618102,666.37,0.00049315,120]
[322342853,1712956618175,500.0,0.00048219,31]
[322342854,1712956618221,500.0,0.00049041,31]
[322342855,1712956618258,500.0,0.00046575,31]
[322342856,1712956618513,500.0,0.00048493,31]
[322342857,1712956618554,500.0,0.00049315,120]
[322342858,1712956618588,500.0,0.00046575,31]
[322342859,1712956618639,500.0,0.00048767,31]
[322342860,1712956618745,500.0,0.00049041,31]
[322342861,1712956618782,157.041306,0.00043448,53]
[322342862,1712956618832,500.0,0.00046575,31]
[322342863,1712956618881,500.0,0.00046849,31]
[322342864,1712956618930,500.0,0.00049315,120]
[322342865,1712956618966,2100.0,0.00047945,30]
[322342866,1712956619002,500.0,0.00047123,31]
[322342867,1712956619038,500.0,0.00046575,31]
[322342868,1712956619104,500.0,0.00046575,31]
[322342869,1712956619166,500.0,0.00046849,31]
[322342870,1712956619257,179.55,0.00046849,31]
[322342871,1712956619345,500.0,0.00046575,31]
[322342872,1712956619426,500.0,0.00047123,31]
[322342873,1712956619464,543.88420008,0.00046575,31]
[322342874,1712956619516,500.0,0.00046575,31]
[322342875,1712956619560,1310.37,0.00046575,31]
[322342876,1712956619609,500.0,0.00046575,31]
[322342877,1712956619645,1310.37,0.00046849,31]
[322342878,1712956619744,500.0,0.00046849,31]
[322342879,1712956619782,1310.37,0.00047123,31]
[322342880,1712956619819,500.0,0.00047123,31]
[322342881,1712956619858,642.02,0.00046575,31]
[322342882,1712956619891,1310.37,0.00047397,31]
[322342883,1712956620013,1310.37,0.00047671,31]
[322342884,1712956620056,500.0,0.00047397,31]
[322342885,1712956620097,1310.37,0.00047945,31]
[322342886,1712956620134,916.37,0.00046575,31]
[322342887,1712956620175,500.0,0.00047671,31]
[322342888,1712956620211,1310.37,0.00048219,31]
[322342889,1712956620389,916.37,0.00046849,31]
[322342890,1712956620427,500.0,0.00046575,31]
[322342891,1712956620460,500.0,0.00047945,31]
[322342892,1712956620494,1310.37,0.00048493,31]
[322342893,1712956620533,916.37,0.00047123,31]
[322342894,1712956620565,500.0,0.00046575,31]
[322342895,1712956620600,500.0,0.00046575,31]
[322342896,1712956620638,500.0,0.00046849,31]
[322342897,1712956620671,1310.37,0.00048767,31]
[322342898,1712956620707,916.37,0.00047397,31]
[322342899,1712956620819,500.0,0.00048219,31]
[322342900,1712956620852,500.0,0.00047123,31]
[322342901,1712956620889,1310.37,0.00049041,31]
[322342902,1712956620922,916.37,0.00047671,31]
[322342903,1712956620960,500.0,0.00046849,31]
[322342904,1712956621013,1310.37,0.00049315,120]
[322342905,1712956621046,916.37,0.00047945,31]
[322342906,1712956621088,500.0,0.00048493,31]
[322342907,1712956621126,916.37,0.00048219,31]
[322342908,1712956621174,305.94,0.00047123,31]
[322342909,1712956621209,500.0,0.00048767,31]
[322342910,1712956621246,916.37,0.00048493,31]
[322342911,1712956621277,649.31,0.00046575,31]
[322342912,1712956621311,1034.48,0.00046575,31]
[322342913,1712956621348,500.0,0.00049041,31]
[322342914,1712956621380,500.0,0.00046575,31]
[322342915,1712956621474,649.31,0.00046849,31]
[322342916,1712956621514,1034.48,0.00046849,31]
[322342917,1712956621550,500.0,0.00046849,31]
[322342918,1712956621584,500.0,0.00049315,120]
[322342919,1712956621627,500.0,0.00046575,31]
[322342920,1712956621659,542.34006267,0.00046575,31]
[322342921,1712956621696,500.0,0.00046575,31]
[322342922,1712956621731,916.37,0.00048767,31]
[322342923,1712956621764,1034.48,0.00047123,31]
[322342924,1712956621798,649.31,0.00047123,31]
[322342925,1712956621833,500.0,0.00046849,31]
[322342926,1712956621874,500.0,0.00046575,31]
[322342927,1712956621906,500.0,0.00046575,31]
[322342928,1712956621939,649.31,0.00047397,31]
[322342929,1712956621971,1034.48,0.00047397,31]
[322342930,1712956622003,916.37,0.00049041,31]
[322342931,1712956622039,500.0,0.00047123,31]
[322342932,1712956622079,500.0,0.00047123,31]
[322342933,1712956622111,500.0,0.00046849,31]
[322342934,1712956622145,157.041306,0.00042448,52]
[322342935,1712956622178,649.31,0.00047671,31]
[322342936,1712956622212,1034.48,0.00047671,31]
[322342937,1712956622252,500.0,0.00046575,31]
[322342938,1712956622295,500.0,0.00047397,31]
[322342939,1712956622327,500.0,0.00047123,31]
[322342940,1712956622363,649.31,0.00047945,31]
[322342941,1712956622398,1034.48,0.00047945,31]
[322342942,1712956622430,500.0,0.00046575,31]
[322342943,1712956622467,916.37,0.00049315,120]
[322342944,1712956622500,508.45884574,0.00047671,31]
[322342945,1712956622534,500.0,0.00047397,31]
[322342946,1712956622575,500.0,0.00046575,31]
[322342947,1712956622609,649.31,0.00048219,31]
[322342948,1712956622647,1034.48,0.00048219,31]
[322342949,1712956622679,500.0,0.00047397,31]
[322342950,1712956622719,500.0,0.00047671,31]
[322342951,1712956622754,358.5206123,0.00046575,31]
[322342952,1712956622791,500.0,0.00046849,31]
[322342953,1712956622829,1034.48,0.00048493,31]
[322342954,1712956622862,649.31,0.00048493,31]
[322342955,1712956622903,500.0,0.00047945,31]
[322342956,1712956622935,500.0,0.00047671,31]
[322342957,1712956622978,500.0,0.00047123,31]
[322342958,1712956623014,1034.48,0.00048767,31]
[322342959,1712956623047,649.31,0.00048767,31]
[322342960,1712956623080,500.0,0.00047945,31]
[322342961,1712956623112,500.0,0.00048219,31]
[322342962,1712956623167,649.31,0.00049041,31]
[322342963,1712956623203,1034.48,0.00049041,31]
[322342964,1712956623236,500.0,0.00048493,31]
[322342965,1712956623272,500.0,0.00048219,31]
[322342966,1712956623316,649.31,0.00049315,120]
[322342967,1712956623348,1034.48,0.00049315,120]
[322342968,1712956623383,500.0,0.00048767,31]
[322342969,1712956623415,500.0,0.00048493,31]
[322342970,1712956623455,500.0,0.00046575,31]
[322342971,1712956623508,500.0,0.00049041,31]
[322342972,1712956623556,500.0,0.00046575,31]
[322342973,1712956623637,500.0,0.00049315,120]
[322342974,1712956623678,500.0,0.00048767,31]
[322342975,1712956623733,500.0,0.00049041,31]
[322342976,1712956623781,500.0,0.00046575,31]
[322342977,1712956623832,500.0,0.00046849,31]
[322342978,1712956623886,500.0,0.00046575,31]
[322342979,1712956623917,500.0,0.00049315,120]
[322342980,1712956623949,500.0,0.00047123,31]
[322342981,1712956624113,500.0,0.00047397,31]
[322342982,1712956624185,500.0,0.00047671,31]
[322342983,1712956624231,500.0,0.00047945,31]
[322342984,1712956624316,500.0,0.00048219,31]
[322342985,1712956624360,500.0,0.00048493,31]
[322342986,1712956624397,500.0,0.00046575,31]
[322342987,1712956624434,157.041306,0.00041448,51]
[322342988,1712956624466,500.0,0.00048767,31]
[322342989,1712956624506,500.0,0.00046575,31]
[322342990,1712956624548,500.0,0.00049041,31]
[322342991,1712956624585,500.0,0.00046575,31]
[322342992,1712956624629,500.0,0.00046575,31]
[322342993,1712956624676,500.0,0.00046849,31]
[322342994,1712956624757,500.0,0.00047123,31]
[322342995,1712956624790,500.0,0.00046849,31]
[322342996,1712956624826,500.0,0.00049315,120]
[322342997,1712956624865,3269.21,0.00046575,31]
[322342998,1712956624912,500.0,0.00047397,31]
[322342999,1712956624948,3269.21,0.00046849,31]
[322343000,1712956625049,500.0,0.00047671,31]
[322343001,1712956625088,3269.21,0.00047123,31]
[322343002,1712956625136,500.0,0.00046575,31]
[322343003,1712956625170,500.0,0.00047945,31]
[322343004,1712956625208,3269.21,0.00047397,31]
[322343005,1712956625245,500.0,0.00046849,31]
[322343006,1712956625282,4394.55,0.00046575,31]
[322343007,1712956625315,500.0,0.00048219,31]
[322343008,1712956625348,3269.21,0.00047671,31]
[322343009,1712956625393,4394.55,0.00046849,31]
[322343010,1712956625427,500.0,0.00047123,31]
[322343011,1712956625463,3269.21,0.00047945,31]
[322343012,1712956625509,4394.55,0.00047123,31]
[322343013,1712956625544,500.0,0.00047397,31]
[322343014,1712956625579,500.0,0.00046575,31]
[322343015,1712956625628,4394.55,0.00047397,31]
[322343016,1712956625662,500.0,0.00046849,31]
[322343017,1712956625697,500.0,0.00047671,31]
[322343018,1712956625731,500.0,0.00046575,31]
[322343019,1712956625764,500.0,0.00046575,31]
[322343020,1712956625797,500.0,0.00048493,31]
[322343021,1712956625835,3269.21,0.00048219,31]
[322343022,1712956625880,4394.55,0.00047671,31]
[322343023,1712956625914,500.0,0.00047123,31]
[322343024,1712956625948,500.0,0.00047945,31]
[322343025,1712956625982,500.0,0.00046575,31]
[322343026,1712956626016,500.0,0.00048767,31]
[322343027,1712956626050,3269.21,0.00048493,31]
[322343028,1712956626091,500.0,0.00047397,31]
[322343029,1712956626124,500.0,0.00046575,31]
[322343030,1712956626160,500.0,0.00046849,31]
[322343031,1712956626193,500.0,0.00049041,31]
[322343032,1712956626226,500.0,0.00048219,31]
[322343033,1712956626259,500.0,0.00046575,31]
[322343034,1712956626293,3269.21,0.00048767,31]
[322343035,1712956626349,527.18399347,0.00046849,31]
[322343036,1712956626389,500.0,0.00049315,120]
[322343037,1712956626423,4394.55,0.00047945,31]
[322343038,1712956626458,500.0,0.00048493,31]
[322343039,1712956626494,500.0,0.00047123,31]
[322343040,1712956626528,500.0,0.00047671,31]
[322343041,1712956626563,3269.21,0.00049041,31]
[322343042,1712956626612,500.0,0.00048767,31]
[322343043,1712956626646,500.0,0.00047397,31]
[322343044,1712956626680,4394.55,0.00048219,31]
[322343045,1712956626938,500.0,0.00047945,31]
[322343046,1712956626983,3269.21,0.00049315,120]
[322343047,1712956627023,500.0,0.00046575,31]
[322343048,1712956627067,4394.55,0.00048493,31]
[322343049,1712956627104,500.0,0.00049041,31]
[322343050,1712956627143,500.0,0.00047671,31]
[322343051,1712956627176,500.0,0.00048219,31]
[322343052,1712956627214,500.0,0.00046575,31]
[322343053,1712956627251,500.0,0.00046849,31]
[322343054,1712956627286,4394.55,0.00048767,31]
[322343055,1712956627321,500.0,0.00049315,120]
[322343056,1712956627355,500.0,0.00047945,31]
[322343057,1712956627403,176.03339722,0.00048493,31]
[322343058,1712956627447,4394.55,0.00049041,31]
[322343059,1712956627483,500.0,0.00048219,31]
[322343060,1712956627519,480.18698477,0.00046575,31]
[322343061,1712956627565,500.0,0.00048493,31]
[322343062,1712956627617,500.0,0.00047123,31]
[322343063,1712956627651,4394.55,0.00049315,120]
[322343064,1712956627702,500.0,0.00048767,31]
[322343065,1712956627743,500.0,0.00046575,31]
[322343066,1712956627784,500.0,0.00047397,31]
[322343067,1712956627817,500.0,0.00049041,31]
[322343068,1712956627860,500.0,0.00046849,31]
[322343069,1712956627903,500.0,0.00047671,31]
[322343070,1712956627937,500.0,0.00046575,31]
[322343071,1712956627979,500.0,0.00047123,31]
[322343072,1712956628016,500.0,0.00047945,31]
[322343073,1712956628049,500.0,0.00049315,120]
[322343074,1712956628091,500.0,0.00047397,31]
[322343075,1712956628131,500.0,0.00048219,31]
[322343076,1712956628178,500.0,0.00047671,31]
[322343077,1712956628210,500.0,0.00048493,31]
[322343078,1712956628251,500.0,0.00047945,31]
[322343079,1712956628286,500.0,0.00046575,31]
[322343080,1712956628322,500.0,0.00048767,31]
[322343081,1712956628438,500.0,0.00049041,31]
[322343082,1712956628494,500.0,0.00046575,31]
[322343083,1712956628532,500.0,0.00046575,31]
[322343084,1712956628564,500.0,0.00046575,31]
[322343085,1712956628597,500.0,0.00046575,31]
[322343086,1712956628631,500.0,0.00048219,31]
[322343087,1712956628668,500.0,0.00049315,120]
[322343088,1712956628705,500.0,0.00046849,31]
[322343089,1712956628737,500.0,0.00046575,31]
[322343090,1712956628770,500.0,0.00048493,31]
[322343091,1712956628803,562.34,0.00046575,31]
[322343092,1712956628847,500.0,0.00047123,31]
[322343093,1712956628884,500.0,0.00048767,31]
[322343094,1712956628917,562.34,0.00046849,31]
[322343095,1712956628960,501.67971599,0.00046575,31]
[322343096,1712956628995,500.0,0.00049041,31]
[322343097,1712956629027,562.34,0.00047123,31]
[322343098,1712956629090,562.34,0.00047397,31]
[322343099,1712956629189,500.0,0.00049315,120]
[322343100,1712956629222,562.34,0.00047671,31]
[322343101,1712956629274,562.34,0.00047945,31]
[322343102,1712956629338,562.34,0.00048219,31]
[322343103,1712956629371,1096.44231741,0.00049315,31]
[322343104,1712956629411,562.34,0.00048493,31]
[322343105,1712956629447,500.0,0.00046575,31]
[322343106,1712956629480,562.34,0.00048767,31]
[322343107,1712956629516,500.0,0.00046575,31]
[322343108,1712956629587,500.0,0.00046575,31]
[322343109,1712956629622,500.0,0.00046849,31]
[322343110,1712956629660,562.34,0.00049041,31]
[322343111,1712956629694,500.0,0.00046575,31]
[322343112,1712956629845,500.0,0.00046849,31]
[322343113,1712956629881,562.34,0.00049315,120]
[322343114,1712956629920,500.0,0.00047123,31]
[322343115,1712956629960,744.96,0.00046575,31]
[322343116,1712956629994,500.0,0.00046575,31]
[322343117,1712956630048,744.96,0.00046849,31]
[322343118,1712956630082,500.0,0.00046849,31]
[322343119,1712956630132,500.0,0.00047397,31]
[322343120,1712956630171,744.96,0.00047123,31]
[322343121,1712956630209,500.0,0.00046575,31]
[322343122,1712956630255,744.96,0.00047397,31]
[322343123,1712956630293,500.0,0.00047671,31]
[322343124,1712956630336,500.0,0.00047123,31]
[322343125,1712956630377,744.96,0.00047671,31]
[322343126,1712956630563,500.0,0.00047945,31]
[322343127,1712956630617,500.0,0.00046575,31]
[322343128,1712956630649,500.0,0.00048219,31]
[322343129,1712956630721,744.96,0.00047945,31]
[322343130,1712956630769,500.0,0.00046575,31]
[322343131,1712956630831,500.0,0.00048493,31]
[322343132,1712956630881,744.96,0.00048219,31]
[322343133,1712956630913,500.0,0.00046849,31]
[322343134,1712956631054,2281.7,0.00046575,31]
[322343135,1712956631091,744.96,0.00048493,31]
[322343136,1712956631126,500.0,0.00048767,31]
[322343137,1712956631163,500.0,0.00047123,31]
[322343138,1712956631197,157.041306,0.00040448,50]
[322343139,1712956631238,2281.7,0.00046849,31]
[322343140,1712956631269,500.0,0.00049041,31]
[322343141,1712956631305,744.96,0.00048767,31]
[322343142,1712956631341,1147.27,0.00046575,31]
[322343143,1712956631375,500.0,0.00047397,31]
[322343144,1712956631408,500.0,0.00046575,31]
[322343145,1712956631442,2281.7,0.00047123,31]
[322343146,1712956631479,185.61641069,0.00049315,120]
[322343147,1712956631516,744.96,0.00049041,31]
[322343148,1712956631549,500.0,0.00047671,31]
[322343149,1712956631590,500.0,0.00046849,31]
[322343150,1712956631622,634.67628,0.00049041,45]
[322343151,1712956631666,2281.7,0.00047397,31]
[322343152,1712956631748,744.96,0.00049315,120]
[322343153,1712956631786,500.0,0.00047945,31]
[322343154,1712956631819,166.54,0.00047123,31]
[322343155,1712956631855,1147.27,0.00046849,31]
[322343156,1712956631903,2281.7,0.00047671,31]
[322343157,1712956631945,500.0,0.00046575,31]
[322343158,1712956631989,634.67628,0.00049041,45]
[322343159,1712956632025,500.0,0.00046575,31]
[322343160,1712956632062,191.22730816,0.00048219,31]
[322343161,1712956632096,500.0,0.00046575,31]
[322343162,1712956632133,500.0,0.00046575,31]
[322343163,1712956632166,1147.27,0.00047123,31]
[322343164,1712956632212,507.61,0.00046575,31]
[322343165,1712956632248,2281.7,0.00047945,31]
[322343166,1712956632549,542.27006129,0.00046849,31]
[322343167,1712956632583,500.0,0.00046849,31]
[322343168,1712956632618,1147.27,0.00047397,31]
[322343169,1712956632655,507.61,0.00046849,31]
[322343170,1712956632699,500.0,0.00047123,31]
[322343171,1712956632736,1147.27,0.00047671,31]
[322343172,1712956632775,507.61,0.00047123,31]
[322343173,1712956632813,500.0,0.00046575,31]
[322343174,1712956632849,2281.7,0.00048219,31]
[322343175,1712956632892,1147.27,0.00047945,31]
[322343176,1712956632925,500.0,0.00046575,31]
[322343177,1712956632962,507.61,0.00047397,31]
[322343178,1712956633007,2281.7,0.00048493,31]
[322343179,1712956633042,1147.27,0.00048219,31]
[322343180,1712956633085,507.61,0.00047671,31]
[322343181,1712956633122,2281.7,0.00048767,31]
[322343182,1712956633220,1147.27,0.00048493,31]
[322343183,1712956633266,507.61,0.00047945,31]
[322343184,1712956633320,500.0,0.00046575,31]
[322343185,1712956633360,2281.7,0.00049041,31]
[322343186,1712956633396,507.61,0.00048219,31]
[322343187,1712956633432,1147.27,0.00048767,31]
[322343188,1712956633487,500.0,0.00046575,31]
[322343189,1712956633534,500.0,0.00046849,31]
[322343190,1712956633572,500.0,0.00046575,31]
[322343191,1712956633610,500.0,0.00046575,31]
[322343192,1712956633643,507.61,0.00048493,31]
[322343193,1712956633677,1147.27,0.00049041,31]
[322343194,1712956633714,500.0,0.00046575,31]
[322343195,1712956633753,500.0,0.00046849,31]
[322343196,1712956633796,507.61,0.00048767,31]
[322343197,1712956633831,500.0,0.00047123,31]
[322343198,1712956633870,2281.7,0.00049315,120]
[322343199,1712956633904,500.0,0.00046575,31]
[322343200,1712956633939,500.0,0.00046575,31]
[322343201,1712956633976,343.625027,0.00046849,31]
[322343202,1712956634008,500.0,0.00046575,31]
[322343203,1712956634050,507.61,0.00049041,31]
[322343204,1712956634087,620.81,0.00047397,31]
[322343205,1712956634122,1147.27,0.00049315,120]
[322343206,1712956634165,500.0,0.00046575,31]
[322343207,1712956634205,507.61,0.00049315,120]
[322343208,1712956634264,500.0,0.00046849,31]
[322343209,1712956634323,500.0,0.00047123,31]
[322343210,1712956634367,500.0,0.00046575,31]
[322343211,1712956634459,500.0,0.00046575,31]
[322343212,1712956634495,500.0,0.00046575,31]
[322343213,1712956634576,500.0,0.00046849,31]
[322343214,1712956634651,500.0,0.00046575,31]
[322343215,1712956634701,500.0,0.00046575,31]
[322343216,1712956634777,500.0,0.00046575,31]
[322343217,1712956634811,590.05,0.00047123,31]
[322343218,1712956634844,500.0,0.00046849,31]
[322343219,1712956634883,500.0,0.00046575,31]
[322343220,1712956634919,500.0,0.00046849,31]
[322343221,1712956634960,500.0,0.00046575,31]
[322343222,1712956635246,500.0,0.00047123,31]
[322343223,1712956635280,500.0,0.00046575,31]
[322343224,1712956635316,500.0,0.00046575,31]
[322343225,1712956635362,500.0,0.00046575,31]
[322343226,1712956635395,500.0,0.00046849,31]
[322343227,1712956635433,500.0,0.00046849,31]
[322343228,1712956635474,500.0,0.00046849,31]
[322343229,1712956635514,500.0,0.00046849,31]
[322343230,1712956635567,182.46,0.00047123,31]
[322343231,1712956635601,408.56,0.00047123,31]
[322343232,1712956635635,500.0,0.00047397,31]
[322343233,1712956635668,573.26,0.00047123,31]
[322343234,1712956635701,500.0,0.00047671,31]
[322343235,1712956635742,500.0,0.00047945,31]
[322343236,1712956635784,449.59682875,0.00048219,31]
[322343237,1712956635876,500.0,0.00046575,31]
[322343238,1712956635975,500.0,0.00046575,31]
[322343239,1712956636008,500.0,0.00046849,31]
[322343240,1712956636042,500.0,0.00046849,31]
[322343241,1712956636076,8148.38,0.00046575,31]
[322343242,1712956636109,500.0,0.00047123,31]
[322343243,1712956636144,8148.38,0.00046849,31]
[322343244,1712956636177,500.0,0.00046575,31]
[322343245,1712956636213,500.0,0.00047397,31]
[322343246,1712956636246,8148.38,0.00047123,31]
[322343247,1712956636298,500.0,0.00047671,31]
[322343248,1712956636358,8148.38,0.00047397,31]
[322343249,1712956636397,310.16574747,0.00047945,31]
[322343250,1712956636433,8148.38,0.00047671,31]
[322343251,1712956636501,500.0,0.00046575,31]
[322343252,1712956636536,500.0,0.00046575,31]
[322343253,1712956636573,8148.38,0.00047945,31]
[322343254,1712956636611,500.0,0.00046575,31]
[322343255,1712956636718,1612.61,0.00046575,31]
[322343256,1712956636753,8148.38,0.00048219,31]
[322343257,1712956636817,500.0,0.00046575,31]
[322343258,1712956636881,500.0,0.00046849,31]
[322343259,1712956636949,1612.61,0.00046849,31]
[322343260,1712956636986,8148.38,0.00048493,31]
[322343261,1712956637020,500.0,0.00046849,31]
[322343262,1712956637055,500.0,0.00047123,31]
[322343263,1712956637091,619.42,0.00046575,31]
[322343264,1712956637124,500.0,0.00046575,31]
[322343265,1712956637164,500.0,0.00046575,31]
[322343266,1712956637197,8148.38,0.00048767,31]
[322343267,1712956637232,500.0,0.00047123,31]
[322343268,1712956637270,500.0,0.00046575,31]
[322343269,1712956637303,500.0,0.00047397,31]
[322343270,1712956637339,619.42,0.00046849,31]
[322343271,1712956637411,500.0,0.00046575,31]
[322343272,1712956637453,1612.61,0.00047123,31]
[322343273,1712956637485,500.0,0.00046849,31]
[322343274,1712956637517,8148.38,0.00049041,31]
[322343275,1712956637555,500.0,0.00047397,31]
[322343276,1712956637590,500.0,0.00046849,31]
[322343277,1712956637626,619.42,0.00047123,31]
[322343278,1712956637659,1612.61,0.00047397,31]
[322343279,1712956637693,8148.38,0.00049315,120]
[322343280,1712956637731,500.0,0.00047123,31]
[322343281,1712956637765,500.0,0.00047671,31]
[322343282,1712956637797,481.26,0.00047671,31]